[Event "Early-Titled-Tuesday-Blitz-May-28-2024"]
[Site "Chess.com"]
[Date "2024.05.28"]
[Round "4"]
[White "microbear"]
[Black "JAN2404"]
[Result "1/2-1/2"]
[WhiteElo "2295"]
[BlackElo "1957"]
[TimeControl "180+1"]
[EndTime "8:40:05 PDT"]
[Termination "Game drawn - insufficient material"]

1. e4 {[%clk 0:03:00.9]} 1... c5 {[%clk 0:02:59.9]} 2. Nf3 {[%clk 0:03:00.1]}
2... d6 {[%clk 0:02:59.3]} 3. d4 {[%clk 0:02:59.7]} 3... cxd4 {[%clk 0:03:00]}
4. Nxd4 {[%clk 0:03:00.6]} 4... Nf6 {[%clk 0:03:00.1]} 5. Nc3 {[%clk 0:03:01.1]}
5... Nc6 {[%clk 0:03:00.6]} 6. Be3 {[%clk 0:03:00.6]} 6... Ng4 {[%clk 0:03:00]}
7. Nxc6 {[%clk 0:02:57.2]} 7... bxc6 {[%clk 0:02:59.3]} 8. Qd2 {[%clk
0:02:55.3]} 8... g6 {[%clk 0:02:47.5]} 9. Bc4 {[%clk 0:02:50.3]} 9... Bg7 {[%clk
0:02:46]} 10. O-O {[%clk 0:02:44.6]} 10... O-O {[%clk 0:02:45.5]} 11. Bg5 {[%clk
0:02:38.6]} 11... Qc7 {[%clk 0:02:28.4]} 12. h3 {[%clk 0:02:35.7]} 12... Nf6
{[%clk 0:02:19.2]} 13. Bb3 {[%clk 0:02:32.9]} 13... Ba6 {[%clk 0:02:08.2]} 14.
Rfe1 {[%clk 0:02:31]} 14... Rad8 {[%clk 0:01:59.6]} 15. Rad1 {[%clk 0:02:29]}
15... d5 {[%clk 0:01:41.1]} 16. exd5 {[%clk 0:02:19.1]} 16... cxd5 {[%clk
0:01:39]} 17. Bxf6 {[%clk 0:02:17.1]} 17... exf6 {[%clk 0:01:32.9]} 18. Nxd5
{[%clk 0:02:17]} 18... Qb8 {[%clk 0:01:25]} 19. Qa5 {[%clk 0:01:58.4]} 19... Bb7
{[%clk 0:01:08.4]} 20. Ne3 {[%clk 0:01:28.2]} 20... f5 {[%clk 0:00:59.5]} 21. c3
{[%clk 0:01:21.7]} 21... f4 {[%clk 0:00:47.7]} 22. Nd5 {[%clk 0:01:05.9]} 22...
Kh8 {[%clk 0:00:34.5]} 23. Qc7 {[%clk 0:00:48.4]} 23... Qxc7 {[%clk 0:00:18.3]}
24. Nxc7 {[%clk 0:00:49.3]} 24... f3 {[%clk 0:00:15.4]} 25. gxf3 {[%clk
0:00:29.8]} 25... Bxf3 {[%clk 0:00:07.8]} 26. Rxd8 {[%clk 0:00:29]} 26... Rxd8
{[%clk 0:00:07.3]} 27. Re8+ {[%clk 0:00:29.3]} 27... Rxe8 {[%clk 0:00:04.4]} 28.
Nxe8 {[%clk 0:00:30.2]} 28... f5 {[%clk 0:00:03]} 29. Nxg7 {[%clk 0:00:17]}
29... Kxg7 {[%clk 0:00:03]} 30. Kh2 {[%clk 0:00:17.4]} 30... Kf6 {[%clk
0:00:03.5]} 31. Kg3 {[%clk 0:00:17.4]} 31... Be4 {[%clk 0:00:03.8]} 32. Kf4
{[%clk 0:00:17.7]} 32... h6 {[%clk 0:00:03.2]} 33. h4 {[%clk 0:00:17.5]} 33...
g5+ {[%clk 0:00:03.2]} 34. hxg5+ {[%clk 0:00:17.8]} 34... hxg5+ {[%clk
0:00:03.8]} 35. Ke3 {[%clk 0:00:18.5]} 35... Ke5 {[%clk 0:00:04]} 36. a3 {[%clk
0:00:18.6]} 36... f4+ {[%clk 0:00:04.2]} 37. Kd2 {[%clk 0:00:18.4]} 37... g4
{[%clk 0:00:03.2]} 38. Bc4 {[%clk 0:00:18.3]} 38... g3 {[%clk 0:00:03.5]} 39.
fxg3 {[%clk 0:00:16.7]} 39... fxg3 {[%clk 0:00:02.9]} 40. Bf1 {[%clk 0:00:17.3]}
40... g2 {[%clk 0:00:03.1]} 41. Bxg2 {[%clk 0:00:17.2]} 41... Bxg2 {[%clk
0:00:04]} 42. Ke3 {[%clk 0:00:16.9]} 42... Kd5 {[%clk 0:00:04.2]} 43. Kd3 {[%clk
0:00:17]} 43... Kc5 {[%clk 0:00:04]} 44. b4+ {[%clk 0:00:16.9]} 44... Kb5 {[%clk
0:00:04]} 45. Kd4 {[%clk 0:00:16.5]} 45... Bf1 {[%clk 0:00:03.7]} 46. Kd5 {[%clk
0:00:15.8]} 46... a5 {[%clk 0:00:04]} 47. bxa5 {[%clk 0:00:10.8]} 47... Kxa5
{[%clk 0:00:03.5]} 48. c4 {[%clk 0:00:10.4]} 48... Bxc4+ {[%clk 0:00:03.6]} 49.
Kxc4 {[%clk 0:00:11.3]} 49... Ka4 {[%clk 0:00:04.2]} 50. Kc5 {[%clk 0:00:11.6]}
50... Kxa3 {[%clk 0:00:05.1]} 1/2-1/2

[Event "Early-Titled-Tuesday-Blitz-May-28-2024"]
[Site "Chess.com"]
[Date "2024.05.28"]
[Round "4"]
[White "abelmat"]
[Black "verrbaa"]
[Result "0-1"]
[WhiteElo "2056"]
[BlackElo "2435"]
[TimeControl "180+1"]
[EndTime "8:40:06 PDT"]
[Termination "verrbaa won by checkmate"]

1. c4 {[%clk 0:03:00.9]} 1... Nf6 {[%clk 0:02:52.7]} 2. Nc3 {[%clk 0:03:00.2]}
2... g6 {[%clk 0:02:49.1]} 3. Nf3 {[%clk 0:02:59.9]} 3... Bg7 {[%clk 0:02:49.1]}
4. g3 {[%clk 0:03:00.1]} 4... O-O {[%clk 0:02:48.7]} 5. Bg2 {[%clk 0:03:00.6]}
5... d5 {[%clk 0:02:39.8]} 6. d4 {[%clk 0:02:59.5]} 6... dxc4 {[%clk 0:02:22.4]}
7. O-O {[%clk 0:02:54.2]} 7... c5 {[%clk 0:02:13.7]} 8. e3 {[%clk 0:02:50]} 8...
cxd4 {[%clk 0:02:10.1]} 9. exd4 {[%clk 0:02:48.1]} 9... Nc6 {[%clk 0:02:00.3]}
10. d5 {[%clk 0:02:38.2]} 10... Nb4 {[%clk 0:01:59.2]} 11. Qe2 {[%clk
0:02:20.1]} 11... Nfxd5 {[%clk 0:01:50.7]} 12. Nxd5 {[%clk 0:02:15.5]} 12...
Nxd5 {[%clk 0:01:28.4]} 13. Qxc4 {[%clk 0:02:12.8]} 13... e6 {[%clk 0:01:24.2]}
14. Bg5 {[%clk 0:02:08.1]} 14... Qb6 {[%clk 0:01:22.1]} 15. Rab1 {[%clk
0:01:52.7]} 15... Bd7 {[%clk 0:01:21.7]} 16. Rfe1 {[%clk 0:01:45.7]} 16... Rac8
{[%clk 0:01:20.5]} 17. Qh4 {[%clk 0:01:43]} 17... Rc2 {[%clk 0:01:11.4]} 18. Rf1
{[%clk 0:01:28.5]} 18... Bb5 {[%clk 0:01:10]} 19. Bh6 {[%clk 0:01:23.1]} 19...
Bxf1 {[%clk 0:01:09.7]} 20. Rxf1 {[%clk 0:01:23.4]} 20... f6 {[%clk 0:01:03]}
21. Bxg7 {[%clk 0:01:18.6]} 21... Kxg7 {[%clk 0:01:03.1]} 22. Bh3 {[%clk
0:00:50]} 22... Rxb2 {[%clk 0:00:36.4]} 23. Qe4 {[%clk 0:00:46.8]} 23... Nc7
{[%clk 0:00:27.2]} 24. Nd4 {[%clk 0:00:43.4]} 24... e5 {[%clk 0:00:22.8]} 25.
Nf3 {[%clk 0:00:34.5]} 25... Na6 {[%clk 0:00:10.1]} 26. a4 {[%clk 0:00:26.7]}
26... Rd8 {[%clk 0:00:09.6]} 27. Nh4 {[%clk 0:00:22.5]} 27... Qb4 {[%clk
0:00:08.8]} 28. Qf3 {[%clk 0:00:18.4]} 28... Rdd2 {[%clk 0:00:07.9]} 29. Be6
{[%clk 0:00:16.5]} 29... Qe7 {[%clk 0:00:05.5]} 30. Bd5 {[%clk 0:00:15.1]} 30...
Nc5 {[%clk 0:00:04.9]} 31. Bc4 {[%clk 0:00:14.5]} 31... e4 {[%clk 0:00:03.7]}
32. Qg4 {[%clk 0:00:13.1]} 32... Qe5 {[%clk 0:00:03.3]} 33. Nf5+ {[%clk
0:00:13.7]} 33... Qxf5 {[%clk 0:00:03.1]} 34. Qh4 {[%clk 0:00:13]} 34... Qe5
{[%clk 0:00:02.8]} 35. Qh3 {[%clk 0:00:12.8]} 35... Qd4 {[%clk 0:00:02]} 36. Bb5
{[%clk 0:00:11.1]} 36... Rxf2 {[%clk 0:00:02]} 37. Qd7+ {[%clk 0:00:10]} 37...
Qxd7 {[%clk 0:00:01.4]} 38. Rxf2 {[%clk 0:00:08.7]} 38... Qd4 {[%clk 0:00:01.3]}
39. Kg2 {[%clk 0:00:08.2]} 39... Qxf2+ {[%clk 0:00:02.2]} 40. Kh3 {[%clk
0:00:07.5]} 40... f5 {[%clk 0:00:02.6]} 41. Kh4 {[%clk 0:00:07.6]} 41... Qxh2+
{[%clk 0:00:02.7]} 42. Kg5 {[%clk 0:00:08.1]} 42... Qxg3# {[%clk 0:00:03.3]} 0-1

[Event "Early-Titled-Tuesday-Blitz-May-28-2024"]
[Site "Chess.com"]
[Date "2024.05.28"]
[Round "4"]
[White "johnathan113"]
[Black "Bauman_Guy"]
[Result "0-1"]
[WhiteElo "2717"]
[BlackElo "2931"]
[TimeControl "180+1"]
[EndTime "8:40:07 PDT"]
[Termination "Bauman_Guy won on time"]

1. e4 {[%clk 0:02:54.4]} 1... c5 {[%clk 0:02:59.9]} 2. Nf3 {[%clk 0:02:54.4]}
2... d6 {[%clk 0:03:00.3]} 3. d4 {[%clk 0:02:55]} 3... Nf6 {[%clk 0:03:00.8]} 4.
Nc3 {[%clk 0:02:54.8]} 4... cxd4 {[%clk 0:03:01.2]} 5. Nxd4 {[%clk 0:02:55.7]}
5... a6 {[%clk 0:03:01.7]} 6. Be2 {[%clk 0:02:53.4]} 6... e5 {[%clk 0:03:01.4]}
7. Nb3 {[%clk 0:02:52.5]} 7... Be7 {[%clk 0:03:01.4]} 8. Bg5 {[%clk 0:02:52.8]}
8... Be6 {[%clk 0:03:00.5]} 9. Bxf6 {[%clk 0:02:52.1]} 9... Bxf6 {[%clk
0:03:00.8]} 10. Qd3 {[%clk 0:02:52.7]} 10... Be7 {[%clk 0:02:59.5]} 11. O-O-O
{[%clk 0:02:49.3]} 11... Nd7 {[%clk 0:03:00.1]} 12. Nd5 {[%clk 0:02:47.7]} 12...
Nb6 {[%clk 0:02:53.6]} 13. Nxe7 {[%clk 0:02:41.1]} 13... Kxe7 {[%clk 0:02:54.5]}
14. f4 {[%clk 0:02:26.5]} 14... exf4 {[%clk 0:02:45.7]} 15. g3 {[%clk
0:02:13.4]} 15... f3 {[%clk 0:02:41]} 16. Bxf3 {[%clk 0:02:12.6]} 16... Qc7
{[%clk 0:02:40.8]} 17. Nd4 {[%clk 0:02:06.9]} 17... Nc4 {[%clk 0:02:37.4]} 18.
Be2 {[%clk 0:01:55.6]} 18... Ne5 {[%clk 0:02:35.2]} 19. Qa3 {[%clk 0:01:52.7]}
19... Rhc8 {[%clk 0:02:33.3]} 20. Rd2 {[%clk 0:01:52.1]} 20... Qc5 {[%clk
0:02:30.7]} 21. Qe3 {[%clk 0:01:21.5]} 21... Rc7 {[%clk 0:02:17.9]} 22. Kb1
{[%clk 0:01:19.9]} 22... Rac8 {[%clk 0:02:16.6]} 23. Rhd1 {[%clk 0:00:59.9]}
23... h6 {[%clk 0:02:13.3]} 24. g4 {[%clk 0:00:48]} 24... Nc6 {[%clk 0:01:59.8]}
25. c3 {[%clk 0:00:38.7]} 25... b5 {[%clk 0:01:56.2]} 26. Qg3 {[%clk 0:00:24.4]}
26... Qe5 {[%clk 0:01:53.3]} 27. Qh4+ {[%clk 0:00:20.5]} 27... g5 {[%clk
0:01:47]} 28. Qf2 {[%clk 0:00:18.7]} 28... Qf4 {[%clk 0:01:31.3]} 29. Qxf4
{[%clk 0:00:16.3]} 29... gxf4 {[%clk 0:01:32.2]} 30. Rf1 {[%clk 0:00:12.6]}
30... Ne5 {[%clk 0:01:26]} 31. Rxf4 {[%clk 0:00:11.6]} 31... b4 {[%clk
0:01:26.2]} 32. Bxa6 {[%clk 0:00:06]} 32... bxc3 {[%clk 0:01:25.3]} 33. bxc3
{[%clk 0:00:03.1]} 33... Ra8 {[%clk 0:01:25.6]} 34. Be2 {[%clk 0:00:02.5]} 34...
Rxc3 {[%clk 0:01:24.7]} 35. Nxe6 {[%clk 0:00:02]} 35... fxe6 {[%clk 0:01:24.5]}
36. Rc2 {[%clk 0:00:02.6]} 36... Rxc2 {[%clk 0:01:23.2]} 37. Kxc2 {[%clk
0:00:03.5]} 37... Rxa2+ {[%clk 0:01:23.8]} 38. Kd1 {[%clk 0:00:04]} 38... Ng6
{[%clk 0:01:10.1]} 39. Rf3 {[%clk 0:00:04.1]} 39... e5 {[%clk 0:01:09.6]} 40.
Bc4 {[%clk 0:00:03.3]} 40... Rxh2 {[%clk 0:01:08.9]} 41. Rf7+ {[%clk 0:00:02.6]}
41... Ke8 {[%clk 0:01:07.4]} 42. Rf6 {[%clk 0:00:03.5]} 42... Nf4 {[%clk
0:01:06.4]} 43. Rxd6 {[%clk 0:00:02.8]} 43... Ke7 {[%clk 0:01:07]} 44. Rb6
{[%clk 0:00:02.5]} 44... Rh4 {[%clk 0:01:06.1]} 45. Kd2 {[%clk 0:00:03.4]} 45...
Rh3 {[%clk 0:01:03.8]} 46. Bd5 {[%clk 0:00:02.4]} 46... h5 {[%clk 0:01:02.6]}
47. gxh5 {[%clk 0:00:02]} 47... Rxh5 {[%clk 0:01:00.9]} 48. Rb7+ {[%clk
0:00:02.2]} 48... Kd6 {[%clk 0:01:01.1]} 49. Ra7 {[%clk 0:00:02.5]} 49... Rh3
{[%clk 0:00:59.4]} 50. Ra6+ {[%clk 0:00:02.2]} 50... Kc5 {[%clk 0:00:58.7]} 51.
Ra5+ {[%clk 0:00:02.8]} 51... Kb4 {[%clk 0:00:59]} 52. Ra8 {[%clk 0:00:03.4]}
52... Rd3+ {[%clk 0:00:57]} 53. Kc2 {[%clk 0:00:03]} 53... Kc5 {[%clk
0:00:56.8]} 54. Rc8+ {[%clk 0:00:03]} 54... Kd4 {[%clk 0:00:56.4]} 55. Rc4+
{[%clk 0:00:02.7]} 55... Ke3 {[%clk 0:00:56.7]} 56. Rc8 {[%clk 0:00:02.8]} 56...
Nxd5 {[%clk 0:00:53.9]} 57. exd5 {[%clk 0:00:03.7]} 57... Rxd5 {[%clk
0:00:54.8]} 58. Re8 {[%clk 0:00:04]} 58... e4 {[%clk 0:00:54.8]} 59. Rh8 {[%clk
0:00:02.3]} 59... Kf2 {[%clk 0:00:52.2]} 60. Rh2+ {[%clk 0:00:02.6]} 60... Kg3
{[%clk 0:00:52.6]} 61. Rh8 {[%clk 0:00:02.3]} 61... e3 {[%clk 0:00:52.5]} 62.
Rg8+ {[%clk 0:00:01.5]} 62... Kf2 {[%clk 0:00:52.6]} 63. Rf8+ {[%clk 0:00:02]}
63... Ke1 {[%clk 0:00:52.8]} 64. Rd8 {[%clk 0:00:01.8]} 64... Rxd8 {[%clk
0:00:52.5]} 0-1

[Event "Early-Titled-Tuesday-Blitz-May-28-2024"]
[Site "Chess.com"]
[Date "2024.05.28"]
[Round "4"]
[White "The_Machine04"]
[Black "Barmen_EV"]
[Result "1-0"]
[WhiteElo "2809"]
[BlackElo "2568"]
[TimeControl "180+1"]
[EndTime "8:40:08 PDT"]
[Termination "The_Machine04 won on time"]

1. d4 {[%clk 0:03:00.9]} 1... Nf6 {[%clk 0:02:59.2]} 2. Nf3 {[%clk 0:03:00.6]}
2... g6 {[%clk 0:02:59.5]} 3. Nbd2 {[%clk 0:02:58.9]} 3... Bg7 {[%clk
0:02:59.5]} 4. e4 {[%clk 0:02:59.2]} 4... d6 {[%clk 0:03:00.1]} 5. Bc4 {[%clk
0:02:59.3]} 5... O-O {[%clk 0:03:00.1]} 6. O-O {[%clk 0:02:59.9]} 6... Nc6
{[%clk 0:02:55.5]} 7. c3 {[%clk 0:02:59.4]} 7... e5 {[%clk 0:02:55.1]} 8. dxe5
{[%clk 0:03:00.3]} 8... dxe5 {[%clk 0:02:56]} 9. Qe2 {[%clk 0:03:00.5]} 9... Nh5
{[%clk 0:02:52.6]} 10. g3 {[%clk 0:03:00.6]} 10... Bg4 {[%clk 0:02:48.9]} 11.
Kg2 {[%clk 0:02:59.8]} 11... Qd7 {[%clk 0:02:38]} 12. Rd1 {[%clk 0:02:59.6]}
12... Rad8 {[%clk 0:02:32.2]} 13. Bb3 {[%clk 0:02:55.4]} 13... Bh3+ {[%clk
0:02:16.8]} 14. Kh1 {[%clk 0:02:55.2]} 14... Kh8 {[%clk 0:02:04.6]} 15. Ng1
{[%clk 0:02:48.7]} 15... Bg4 {[%clk 0:02:01.5]} 16. f3 {[%clk 0:02:48.4]} 16...
Be6 {[%clk 0:01:59.3]} 17. Nf1 {[%clk 0:02:46.2]} 17... Qe7 {[%clk 0:01:53.7]}
18. Rxd8 {[%clk 0:02:44.4]} 18... Rxd8 {[%clk 0:01:54.6]} 19. Be3 {[%clk
0:02:44.5]} 19... f5 {[%clk 0:01:48.5]} 20. Rd1 {[%clk 0:02:43.4]} 20... fxe4
{[%clk 0:00:45.9]} 21. Rxd8+ {[%clk 0:02:39.6]} 21... Nxd8 {[%clk 0:00:45.2]}
22. fxe4 {[%clk 0:02:40.2]} 22... Bxb3 {[%clk 0:00:42.6]} 23. axb3 {[%clk
0:02:41.1]} 23... Nf6 {[%clk 0:00:42]} 24. Nd2 {[%clk 0:02:39.6]} 24... Ne6
{[%clk 0:00:30.2]} 25. Ngf3 {[%clk 0:02:39.1]} 25... Nd7 {[%clk 0:00:28.9]} 26.
b4 {[%clk 0:02:38.6]} 26... h6 {[%clk 0:00:27.7]} 27. Qc4 {[%clk 0:02:37.1]}
27... g5 {[%clk 0:00:24.9]} 28. Kg2 {[%clk 0:02:30.8]} 28... Bf6 {[%clk
0:00:25.1]} 29. Nf1 {[%clk 0:02:23]} 29... g4 {[%clk 0:00:24.8]} 30. N3d2 {[%clk
0:02:23]} 30... h5 {[%clk 0:00:24.3]} 31. Bf2 {[%clk 0:02:20.8]} 31... Ng5
{[%clk 0:00:20.5]} 32. Ne3 {[%clk 0:02:19.1]} 32... Nb6 {[%clk 0:00:18.9]} 33.
Qd3 {[%clk 0:02:17.1]} 33... Qd6 {[%clk 0:00:15.2]} 34. Qxd6 {[%clk 0:02:15.8]}
34... cxd6 {[%clk 0:00:16.1]} 35. Nf5 {[%clk 0:02:13.9]} 35... Nc8 {[%clk
0:00:13.9]} 36. Be3 {[%clk 0:02:09.3]} 36... Nf7 {[%clk 0:00:06.9]} 37. Nc4
{[%clk 0:02:04.5]} 37... Kg8 {[%clk 0:00:07.4]} 38. b5 {[%clk 0:01:54.2]} 38...
Kf8 {[%clk 0:00:07.1]} 39. Na5 {[%clk 0:01:43.7]} 39... Nd8 {[%clk 0:00:07.1]}
40. Nc4 {[%clk 0:01:40.7]} 40... Nf7 {[%clk 0:00:06.9]} 41. Kf2 {[%clk
0:01:40.7]} 41... Ke8 {[%clk 0:00:07.3]} 42. Ke2 {[%clk 0:01:41.1]} 42... Kd7
{[%clk 0:00:07.8]} 43. Kd3 {[%clk 0:01:41.6]} 43... Ke6 {[%clk 0:00:08.3]} 44.
Na5 {[%clk 0:01:40.2]} 44... b6 {[%clk 0:00:03.6]} 45. Nc6 {[%clk 0:01:27.9]}
45... d5 {[%clk 0:00:04.1]} 46. Nh6 {[%clk 0:01:21.2]} 46... dxe4+ {[%clk
0:00:04.4]} 47. Kxe4 {[%clk 0:01:20.3]} 47... Nxh6 {[%clk 0:00:05]} 48. Bxh6
{[%clk 0:01:19.6]} 48... Nd6+ {[%clk 0:00:05.9]} 49. Kd3 {[%clk 0:01:19.8]}
49... Nxb5 {[%clk 0:00:06.8]} 50. Be3 {[%clk 0:01:10.4]} 50... Nd6 {[%clk
0:00:07.1]} 51. Nxa7 {[%clk 0:01:09]} 51... e4+ {[%clk 0:00:06.6]} 52. Kc2
{[%clk 0:01:02.8]} 52... b5 {[%clk 0:00:02.8]} 53. Bc5 {[%clk 0:01:00]} 53...
Nc4 {[%clk 0:00:02.3]} 54. Nxb5 {[%clk 0:00:49.7]} 54... Ne5 {[%clk 0:00:02.8]}
55. Nd4+ {[%clk 0:00:43.7]} 55... Kd5 {[%clk 0:00:02.7]} 56. b4 {[%clk
0:00:44.3]} 56... Nf3 {[%clk 0:00:02.7]} 57. Nxf3 {[%clk 0:00:44.4]} 57... gxf3
{[%clk 0:00:01.6]} 58. Kb3 {[%clk 0:00:44.5]} 58... Bg5 {[%clk 0:00:01.9]} 59.
c4+ {[%clk 0:00:45]} 59... Ke5 {[%clk 0:00:01.6]} 60. Kc3 {[%clk 0:00:44.4]} 1-0

[Event "Early-Titled-Tuesday-Blitz-May-28-2024"]
[Site "Chess.com"]
[Date "2024.05.28"]
[Round "4"]
[White "Adar_07"]
[Black "AlbusSevresPotter"]
[Result "1-0"]
[WhiteElo "2769"]
[BlackElo "2549"]
[TimeControl "180+1"]
[EndTime "8:40:09 PDT"]
[Termination "Adar_07 won on time"]

1. Nf3 {[%clk 0:03:00.9]} 1... Nf6 {[%clk 0:02:53.9]} 2. d4 {[%clk 0:02:59.9]}
2... e6 {[%clk 0:02:46]} 3. Bg5 {[%clk 0:02:59.6]} 3... Be7 {[%clk 0:02:36.5]}
4. Bxf6 {[%clk 0:02:49.9]} 4... Bxf6 {[%clk 0:02:37.4]} 5. e4 {[%clk 0:02:50.8]}
5... d6 {[%clk 0:02:37.2]} 6. c3 {[%clk 0:02:49]} 6... O-O {[%clk 0:02:28.1]} 7.
h4 {[%clk 0:02:45.8]} 7... Nc6 {[%clk 0:02:17.2]} 8. g4 {[%clk 0:02:32.7]} 8...
g6 {[%clk 0:01:59.9]} 9. g5 {[%clk 0:02:31.2]} 9... Bg7 {[%clk 0:01:59.7]} 10.
Nbd2 {[%clk 0:02:23.4]} 10... e5 {[%clk 0:01:49.4]} 11. d5 {[%clk 0:02:22.3]}
11... Ne7 {[%clk 0:01:46.4]} 12. Qb3 {[%clk 0:02:12.4]} 12... f5 {[%clk
0:01:29.9]} 13. Bd3 {[%clk 0:02:12.3]} 13... fxe4 {[%clk 0:01:22.4]} 14. Bxe4
{[%clk 0:02:13.2]} 14... Rf4 {[%clk 0:01:18.3]} 15. O-O-O {[%clk 0:02:09.8]}
15... Qf8 {[%clk 0:01:13]} 16. Rde1 {[%clk 0:02:06.4]} 16... Bg4 {[%clk
0:01:10.9]} 17. Qxb7 {[%clk 0:02:03.1]} 17... Rc8 {[%clk 0:00:41.2]} 18. Nh2
{[%clk 0:01:52.4]} 18... Bd7 {[%clk 0:00:30.9]} 19. Qxa7 {[%clk 0:01:36.3]}
19... Rxh4 {[%clk 0:00:21.2]} 20. Nhf3 {[%clk 0:01:34.2]} 20... Rf4 {[%clk
0:00:20.8]} 21. Qe3 {[%clk 0:01:30.1]} 21... Ra8 {[%clk 0:00:19.7]} 22. a3
{[%clk 0:01:29.2]} 22... Nf5 {[%clk 0:00:20.2]} 23. Qd3 {[%clk 0:01:28.6]} 23...
Qe7 {[%clk 0:00:14.5]} 24. Rh2 {[%clk 0:01:27]} 24... Rf8 {[%clk 0:00:14.8]} 25.
Reh1 {[%clk 0:01:27]} 25... h5 {[%clk 0:00:13]} 26. gxh6 {[%clk 0:01:27.3]}
26... Bf6 {[%clk 0:00:11.7]} 27. Rg1 {[%clk 0:01:18.2]} 27... Kh7 {[%clk
0:00:11.8]} 28. Kb1 {[%clk 0:01:10]} 28... Qe8 {[%clk 0:00:11.8]} 29. Ka1 {[%clk
0:01:09.9]} 29... Bb5 {[%clk 0:00:11.9]} 30. c4 {[%clk 0:01:08.6]} 30... Bd7
{[%clk 0:00:11.7]} 31. Rhg2 {[%clk 0:01:06]} 31... Ne7 {[%clk 0:00:06.1]} 32.
Rxg6 {[%clk 0:01:00.4]} 32... Rxe4 {[%clk 0:00:05.6]} 33. Rg7+ {[%clk
0:00:54.1]} 33... Bxg7 {[%clk 0:00:05.9]} 34. Qxe4+ {[%clk 0:00:52.5]} 34... Bf5
{[%clk 0:00:05]} 35. Ng5+ {[%clk 0:00:30.4]} 35... Kxh6 {[%clk 0:00:05]} 36.
Qh4+ {[%clk 0:00:30.2]} 36... Qh5 {[%clk 0:00:05.6]} 37. Qg3 {[%clk 0:00:24]}
37... Bf6 {[%clk 0:00:04]} 38. Nge4 {[%clk 0:00:20.2]} 38... Rg8 {[%clk
0:00:02.8]} 39. Qe3+ {[%clk 0:00:20.2]} 39... Bg5 {[%clk 0:00:02.9]} 40. Qe1
{[%clk 0:00:15.5]} 40... Bxe4 {[%clk 0:00:02.2]} 41. Nxe4 {[%clk 0:00:15]} 41...
Bh4 {[%clk 0:00:01.2]} 42. Qc1+ {[%clk 0:00:12.4]} 42... Kh7 {[%clk 0:00:01.6]}
43. Rh1 {[%clk 0:00:09.8]} 43... Nf5 {[%clk 0:00:01.4]} 44. Nf6+ {[%clk
0:00:09.6]} 1-0

[Event "Early-Titled-Tuesday-Blitz-May-28-2024"]
[Site "Chess.com"]
[Date "2024.05.28"]
[Round "4"]
[White "rookpower2004"]
[Black "klercaku"]
[Result "0-1"]
[WhiteElo "2485"]
[BlackElo "2295"]
[TimeControl "180+1"]
[EndTime "8:40:10 PDT"]
[Termination "klercaku won by checkmate"]

1. e4 {[%clk 0:03:00.9]} 1... e5 {[%clk 0:03:00.4]} 2. d4 {[%clk 0:02:59.9]}
2... exd4 {[%clk 0:03:00.5]} 3. Qxd4 {[%clk 0:03:00.5]} 3... Nc6 {[%clk
0:02:59.5]} 4. Qe3 {[%clk 0:03:00]} 4... d6 {[%clk 0:02:58.4]} 5. Nc3 {[%clk
0:02:58.1]} 5... Nf6 {[%clk 0:02:58.7]} 6. Bd2 {[%clk 0:02:57.7]} 6... Be7
{[%clk 0:02:57.2]} 7. Bc4 {[%clk 0:02:57]} 7... Be6 {[%clk 0:02:56]} 8. Nd5
{[%clk 0:02:38.1]} 8... a6 {[%clk 0:02:31]} 9. f4 {[%clk 0:02:32.5]} 9... Ng4
{[%clk 0:02:12.3]} 10. Qe2 {[%clk 0:02:27.2]} 10... Nf6 {[%clk 0:01:57.9]} 11.
Nf3 {[%clk 0:02:23.2]} 11... b5 {[%clk 0:01:49.6]} 12. Bb3 {[%clk 0:02:20.6]}
12... Nb8 {[%clk 0:01:34.2]} 13. O-O {[%clk 0:02:10.4]} 13... Nbd7 {[%clk
0:01:28]} 14. Rae1 {[%clk 0:02:02.5]} 14... O-O {[%clk 0:01:15.7]} 15. Nxe7+
{[%clk 0:01:57.2]} 15... Qxe7 {[%clk 0:01:14.6]} 16. Nd4 {[%clk 0:01:56.3]}
16... Bxb3 {[%clk 0:01:04.3]} 17. axb3 {[%clk 0:01:56.9]} 17... Rfe8 {[%clk
0:01:00.9]} 18. Nc6 {[%clk 0:01:55.4]} 18... Qxe4 {[%clk 0:00:53.9]} 19. Qd1
{[%clk 0:01:47.5]} 19... Qxc6 {[%clk 0:00:51.5]} 20. Bc3 {[%clk 0:01:46]} 20...
Ne4 {[%clk 0:00:47.7]} 21. Bd4 {[%clk 0:01:42.3]} 21... f5 {[%clk 0:00:41.8]}
22. Qd3 {[%clk 0:01:41]} 22... Ndf6 {[%clk 0:00:42]} 23. Bxf6 {[%clk 0:01:39.8]}
23... Nxf6 {[%clk 0:00:38.4]} 24. Qxf5 {[%clk 0:01:39.6]} 24... Qc5+ {[%clk
0:00:38.9]} 25. Qxc5 {[%clk 0:01:38.6]} 25... dxc5 {[%clk 0:00:39.8]} 26. h3
{[%clk 0:01:37.4]} 26... Rad8 {[%clk 0:00:39]} 27. Rxe8+ {[%clk 0:01:30.9]}
27... Nxe8 {[%clk 0:00:34.2]} 28. Re1 {[%clk 0:01:28.8]} 28... Kf7 {[%clk
0:00:34.7]} 29. Re2 {[%clk 0:01:28.5]} 29... Rd1+ {[%clk 0:00:34.1]} 30. Kf2
{[%clk 0:01:28.6]} 30... Rb1 {[%clk 0:00:34.4]} 31. c3 {[%clk 0:01:27]} 31...
Nd6 {[%clk 0:00:31]} 32. Kf3 {[%clk 0:01:26.5]} 32... c4 {[%clk 0:00:25.3]} 33.
b4 {[%clk 0:01:25.5]} 33... Rd1 {[%clk 0:00:17.5]} 34. g4 {[%clk 0:01:23.2]}
34... Ra1 {[%clk 0:00:17.5]} 35. f5 {[%clk 0:01:21.4]} 35... a5 {[%clk
0:00:17.6]} 36. bxa5 {[%clk 0:01:20]} 36... Rxa5 {[%clk 0:00:18.5]} 37. Kf4
{[%clk 0:01:19.6]} 37... Ra2 {[%clk 0:00:16.3]} 38. g5 {[%clk 0:01:19]} 38... b4
{[%clk 0:00:15.1]} 39. Kf3 {[%clk 0:00:42.3]} 39... bxc3 {[%clk 0:00:14.8]} 40.
bxc3 {[%clk 0:00:41.7]} 40... Rxe2 {[%clk 0:00:14.9]} 41. Kxe2 {[%clk
0:00:42.6]} 41... Nxf5 {[%clk 0:00:15.4]} 42. Kf3 {[%clk 0:00:42.5]} 42... Nd6
{[%clk 0:00:15.9]} 43. Ke3 {[%clk 0:00:42.6]} 43... Kg6 {[%clk 0:00:16.3]} 44.
Kf4 {[%clk 0:00:41.4]} 44... Nb5 {[%clk 0:00:15.4]} 45. h4 {[%clk 0:00:37.8]}
45... Nxc3 {[%clk 0:00:15.3]} 46. Kg4 {[%clk 0:00:37.3]} 46... Nd5 {[%clk
0:00:14.4]} 47. h5+ {[%clk 0:00:37.6]} 47... Kf7 {[%clk 0:00:15.1]} 48. Kf5
{[%clk 0:00:38.2]} 48... c3 {[%clk 0:00:14.9]} 49. g6+ {[%clk 0:00:37.8]} 49...
hxg6+ {[%clk 0:00:15.3]} 50. hxg6+ {[%clk 0:00:38.7]} 50... Kf8 {[%clk
0:00:15.7]} 51. Ke6 {[%clk 0:00:38]} 51... c2 {[%clk 0:00:15.6]} 52. Kxd5 {[%clk
0:00:37.8]} 52... c1=Q {[%clk 0:00:15.2]} 53. Ke6 {[%clk 0:00:38.5]} 53... Qe3+
{[%clk 0:00:14.2]} 54. Kd7 {[%clk 0:00:35.2]} 54... c5 {[%clk 0:00:14.6]} 55.
Kd6 {[%clk 0:00:34.7]} 55... c4 {[%clk 0:00:15.2]} 56. Kd7 {[%clk 0:00:34.7]}
56... c3 {[%clk 0:00:15.5]} 57. Kd6 {[%clk 0:00:35.2]} 57... c2 {[%clk
0:00:15.8]} 58. Kd7 {[%clk 0:00:36.1]} 58... c1=Q {[%clk 0:00:15.9]} 59. Kd8
{[%clk 0:00:37]} 59... Qd4# {[%clk 0:00:15.2]} 0-1